bitfinex/quotes_SOLUSD_20250710
["timestamp","ask_amount","ask_price","bid_price","bid_amount"]
[1752167408085,14.86413235,158.94,158.93,35.12]
[1752167408254,0.7,158.94,158.93,35.12]
[1752167408454,14.86413235,158.94,158.92,27.16]
[1752167408678,14.16413235,158.93,158.92,27.16]
[1752167408873,9.97209477,158.93,158.92,62.28]
[1752167409252,0.7,158.94,158.92,62.28]
[1752167409253,0.7,158.95,158.92,27.16]
[1752167409464,9.97209477,158.93,158.92,27.16]
[1752167409701,9.97209477,158.93,158.92,62.26]
[1752167409879,0.7,158.96,158.92,62.68648471]
[1752167410059,9.97209477,158.93,158.92,63.31573213]
[1752167410255,0.7,158.96,158.92,63.31573213]
[1752167410483,9.97209477,158.94,158.92,63.82573213]
[1752167410667,9.97209477,158.93,158.92,63.82573213]
[1752167410856,10.67209477,159.0,158.93,0.42648471]
[1752167411055,36.67209477,159.0,158.93,0.42648471]
[1752167411263,9.97209477,158.96,158.94,0.62916823]
[1752167411496,1.5375,159.01,158.95,0.14216157]
[1752167411670,9.97209477,159.0,158.97,0.42648471]
[1752167411870,7.108,159.05,158.99,0.14216157]
[1752167412073,0.7,159.05,159.0,36.13541552]
[1752167412376,0.7,159.04,159.0,35.36432314]
[1752167412581,27.5975,159.06,159.01,0.99432314]
[1752167412582,0.76,159.06,159.01,0.99432314]
[1752167412770,9.97209477,159.03,159.01,0.99432314]
[1752167413158,0.06,159.06,159.02,1.33885171]
[1752167413364,9.97209477,159.03,159.02,0.77101328]
[1752167413667,0.06,159.06,159.02,0.77101328]
[1752167413861,9.97209477,159.03,159.02,0.77101328]
[1752167414062,0.06,159.06,159.02,0.77101328]
[1752167414593,9.97209477,159.04,159.03,0.71]
[1752167414762,0.06,159.06,159.03,0.71]
[1752167415081,0.06,159.06,159.04,35.74877263]
[1752167415258,14.16376329,159.05,159.04,35.74877263]
[1752167415459,14.86376329,159.05,159.04,35.12]
[1752167416175,0.06,159.06,159.04,35.12]
[1752167416381,14.16376329,159.05,159.01,0.9132144]
[1752167416572,0.76,159.06,159.02,35.06]
[1752167416756,14.16376329,159.03,159.02,35.06]
[1752167416955,0.76,159.06,159.02,35.06]
[1752167417244,0.7,159.05,159.02,35.06]
[1752167417357,14.16376329,159.03,159.02,35.06]
[1752167417563,14.86376329,159.03,158.98,0.62900993]
[1752167417762,14.16376329,158.99,158.98,0.62900993]
[1752167417980,14.16376329,158.99,158.98,35.76900993]
[1752167418178,0.7,159.02,158.98,35.76900993]
[1752167418380,14.16376329,158.99,158.98,0.62900993]
[1752167418691,14.16376329,158.99,158.98,35.56648471]
[1752167418860,14.16376329,158.99,158.98,36.27648471]
[1752167419061,0.7,159.04,158.98,36.25648471]
[1752167419310,14.16376329,158.99,158.97,0.6290495]
[1752167419589,1.5167,159.01,158.93,50.62920782]
[1752167419770,14.16376329,158.95,158.94,35.12]
[1752167420167,0.7,158.98,158.94,35.12]
[1752167420474,14.16376329,158.95,158.94,35.12]
[1752167421502,2.2167,159.01,158.95,0.42648471]
[1752167421786,14.16376329,158.96,158.95,0.42648471]
[1752167422158,14.16376329,158.96,158.95,1.13648471]
[1752167422398,2.2167,159.01,158.95,1.13648471]
[1752167422562,0.7,159.03,158.97,0.14216157]
[1752167422769,14.16376329,158.98,158.97,0.14216157]
[1752167422968,14.16376329,158.98,158.97,36.21648471]
[1752167423187,1.5047,159.05,158.98,0.28432314]
[1752167423380,14.16376329,159.01,159.0,0.14216157]
[1752167423586,14.16376329,159.01,159.0,35.22216157]
[1752167423885,1.5047,159.05,159.0,36.21648471]
[1752167424091,14.16376329,159.02,159.0,36.21648471]
[1752167424263,0.7,159.05,159.0,36.21648471]
[1752167424464,0.06,159.06,159.02,0.14216157]
[1752167424677,14.16376329,159.03,159.02,0.14216157]
[1752167424888,0.06,159.06,159.02,0.14216157]
[1752167425096,14.16376329,159.03,159.01,0.28432314]
[1752167425393,14.16376329,159.03,158.98,0.71]
[1752167425394,14.86376329,159.02,158.98,0.14216157]
[1752167425595,0.7,159.02,158.99,35.1]
[1752167425773,14.16376329,159.0,158.99,35.1]
[1752167425974,0.7,159.02,158.99,35.1]
[1752167426310,14.16376329,159.0,158.99,35.52648471]
[1752167426607,14.16376329,159.0,158.99,35.38432314]
[1752167426892,14.16376329,159.0,158.99,0.28432314]
[1752167427097,0.7,159.02,158.99,0.28432314]
[1752167427398,0.7,159.02,158.96,0.71]
[1752167427399,14.16376329,159.0,158.96,26.71]
[1752167427605,0.7,159.02,158.97,36.29648471]
[1752167427907,26.06,159.06,158.99,0.14216157]
[1752167428071,26.76,159.06,158.99,0.14216157]
[1752167428276,14.16376329,159.0,158.99,0.85216157]
[1752167428592,14.16376329,159.0,158.99,0.14216157]
[1752167428898,0.7,159.03,158.97,35.30216157]
[1752167429303,0.7,159.03,158.98,0.14216157]
[1752167429516,14.16376329,158.99,158.95,0.14216157]
[1752167429805,0.7,159.02,158.96,35.12]
[1752167430101,0.7,159.02,158.96,35.83]
[1752167430286,26.06,159.06,158.97,0.42648471]
[1752167430482,0.7,159.04,158.97,0.42648471]
[1752167431106,14.16376329,158.98,158.97,0.42648471]
[1752167431297,0.7,159.04,158.97,1.13648471]
[1752167431608,14.16376329,159.0,158.97,1.13648471]
[1752167431808,14.92376329,159.06,158.99,0.14216157]
[1752167432006,14.16376329,159.01,159.0,35.50648471]
[1752167432187,14.16376329,159.02,159.01,0.28432314]
[1752167432384,14.16376329,159.02,159.01,1.13648471]
[1752167432586,26.06,159.06,159.01,1.13648471]
[1752167432796,14.16376329,159.03,159.01,1.13648471]
[1752167433006,14.16376329,159.02,158.95,0.62912865]
[1752167433215,14.16376329,158.97,158.96,35.79]
[1752167433411,0.7,159.02,158.97,0.28432314]
[1752167433621,0.7,159.01,158.97,0.28432314]
[1752167433800,0.7,159.03,158.99,0.28432314]
[1752167433985,26.0,159.05,158.99,0.28432314]
[1752167433986,0.7,159.02,158.99,0.28432314]
[1752167434296,0.7,159.01,158.98,35.08]
[1752167434612,26.0,159.03,158.99,35.04]
[1752167434979,0.76,159.06,159.0,0.71]
[1752167435290,9.96092375,159.01,159.0,0.14216157]
[1752167436299,9.96092375,159.01,159.0,35.18216157]
[1752167436478,0.7,159.03,159.0,35.04]
[1752167436709,9.96092375,159.01,159.0,35.32432314]
[1752167438011,9.96092375,159.01,159.0,0.28432314]
[1752167438213,0.65,159.05,159.0,35.30432314]
[1752167438385,9.96092375,159.01,159.0,35.30432314]
[1752167439103,9.96092375,159.01,159.0,35.02]
[1752167439310,0.65,159.03,158.98,0.42648471]
[1752167439496,0.06,159.06,159.0,35.24432314]
[1752167439701,9.96092375,159.01,159.0,34.96]
[1752167439909,10.61092375,159.01,159.0,34.96]
[1752167440120,10.61092375,159.01,158.98,0.28432314]
[1752167440437,0.06,159.06,158.94,26.0]
[1752167440728,0.06,159.06,158.95,1.10648471]
[1752167440929,0.65,159.05,158.95,36.02648471]
[1752167441138,0.65,159.05,158.96,1.30908907]
[1752167441641,9.96092375,158.97,158.96,1.45125064]
[1752167441804,0.65,159.03,158.96,0.82216157]
[1752167442004,9.96092375,158.98,158.96,0.82216157]
[1752167442204,9.96092375,158.98,158.97,0.68]
[1752167442414,0.65,159.03,158.98,0.14216157]
[1752167442606,0.65,159.03,158.99,34.92]
[1752167442927,9.96092375,159.0,158.99,35.34648471]
[1752167443129,0.65,159.03,159.0,0.28432314]
[1752167443425,0.65,159.05,159.0,0.28432314]
[1752167443596,9.96092375,159.01,159.0,0.28432314]
[1752167443999,9.96092375,159.02,159.0,1.73541552]
[1752167444297,9.96092375,159.01,159.0,1.10648471]
[1752167444923,9.96092375,159.01,159.0,0.28432314]
[1752167445129,9.96092375,159.01,159.0,35.12432314]
[1752167445626,10.61092375,159.01,159.0,34.84]
[1752167445829,9.96092375,159.01,159.0,34.84]
[1752167447796,0.65,159.05,158.98,0.68]
[1752167448002,9.96092375,159.01,158.99,35.26648471]
[1752167448227,0.65,159.05,158.99,35.94648471]
[1752167448533,9.96092375,159.0,158.99,35.26648471]
[1752167448727,9.96092375,159.0,158.99,35.12432314]
[1752167448922,0.65,159.03,158.99,35.12432314]
[1752167449101,9.96092375,159.0,158.99,35.80432314]
[1752167449300,9.96092375,159.0,158.99,35.12432314]
[1752167449700,9.96092375,159.0,158.99,0.28432314]
[1752167449897,9.96092375,159.0,158.99,34.74]
[1752167450303,19.9218475,159.0,158.99,34.74]
[1752167450504,9.96092375,159.0,158.99,34.74]
[1752167451002,20.5718475,159.0,158.99,34.76]
[1752167451202,20.5718475,159.0,158.98,34.76]
[1752167451203,1.5983,158.99,158.98,34.76]
[1752167451420,2.2483,158.99,158.98,34.76]
[1752167451629,9.96092375,158.99,158.98,34.76]
[1752167451944,9.96092375,158.99,158.98,35.04432314]
[1752167454304,0.65,159.01,158.98,35.04432314]
[1752167454506,9.96092375,158.99,158.98,34.76]
[1752167454937,9.96092375,158.99,158.95,26.0]
[1752167454938,10.61092375,158.99,158.95,26.0]
[1752167455144,9.96092375,158.96,158.93,50.0]
[1752167455438,0.65,158.98,158.94,35.02432314]
[1752167455628,0.65,159.02,158.96,0.42648471]
[1752167456140,2.1994,159.03,158.97,0.68]
[1752167456335,0.65,159.02,158.98,34.72]
[1752167456537,0.65,159.01,158.98,34.72]
[1752167456749,9.96092375,158.99,158.98,34.72]
[1752167457857,9.96092375,159.01,158.98,35.4]
[1752167458028,9.96092375,159.0,158.98,35.4]
[1752167458348,9.96092375,158.99,158.98,35.4]
[1752167458642,9.96092375,158.99,158.98,34.72]
[1752167459842,0.65,159.03,158.98,34.72]
[1752167460151,9.96092375,158.99,158.98,34.72]
[1752167461022,10.61092375,158.99,158.96,0.62908907]
[1752167461237,10.61092375,158.99,158.93,50.68]
[1752167461238,0.65,158.98,158.97,34.62]
[1752167461435,10.61092375,158.98,158.97,34.62]
[1752167462127,9.96092375,158.98,158.97,34.62]
[1752167462541,9.96092375,158.98,158.97,35.3]
[1752167462849,2.2427,159.04,158.97,35.3]
[1752167463165,9.96092375,158.98,158.97,35.3]
[1752167464242,0.65,159.03,158.97,35.3]
[1752167464446,9.96092375,158.99,158.98,0.68]
[1752167464653,9.96092375,159.01,158.98,1.30900993]
[1752167464862,9.96092375,159.01,158.99,0.68]
[1752167465044,9.96092375,159.01,159.0,34.58]
[1752167465246,1.5927,159.04,159.0,34.58]
[1752167465247,9.96092375,159.02,159.0,35.88893081]
[1752167465532,9.96092375,159.01,159.0,35.20893081]
[1752167465766,10.61092375,159.01,159.0,34.56]
[1752167466573,9.96092375,159.01,159.0,34.56]
[1752167466734,0.06,159.06,159.0,35.24]
[1752167466934,9.96092375,159.01,159.0,35.52432314]
[1752167467135,0.06,159.06,159.01,0.42648471]
[1752167467364,9.96092375,159.04,159.02,1.29885171]
[1752167467554,9.96092375,159.04,159.03,35.53432314]
[1752167467754,10.02092375,159.06,159.04,0.42648471]
[1752167467973,0.06,159.06,159.05,0.81216157]
[1752167468548,0.06,159.06,159.05,27.09648471]
[1752167468743,10.02092375,159.06,159.05,27.09648471]
[1752167468969,0.06,159.06,159.05,27.09648471]
[1752167469269,0.06,159.06,159.05,43.88116868]
[1752167470181,0.06,159.06,159.05,17.88116868]
[1752167473983,0.06,159.06,159.05,43.88116868]
[1752167475566,0.06,159.06,159.05,78.32116868]
[1752167477610,1.5738,159.16,159.08,26.0]
[1752167477922,9.96092375,159.18,159.14,0.42648471]
[1752167478123,9.96092375,159.17,159.16,0.42648471]
[1752167478322,9.96092375,159.17,159.16,34.78648471]
[1752167478498,9.96092375,159.17,159.12,26.0]
[1752167478499,10.65092375,159.17,159.12,26.0]
[1752167478682,9.96092375,159.13,159.1,0.67]
[1752167478889,0.69,159.19,159.11,52.46317997]
[1752167479212,6.87370991,159.2,159.13,26.42648471]
[1752167479393,17.52463366,159.2,159.15,0.28432314]
[1752167479704,6.87370991,159.2,159.17,0.14216157]
[1752167479910,6.87370991,159.2,159.18,34.36]
[1752167480084,0.69,159.19,159.15,0.28432314]
[1752167480286,0.69,159.19,159.16,34.34]
[1752167480713,9.96092375,159.17,159.16,34.62432314]
[1752167481010,6.87370991,159.2,159.17,0.42648471]
[1752167481319,6.87370991,159.2,159.17,0.28432314]
[1752167481320,9.96092375,159.18,159.17,0.28432314]
[1752167482689,9.96092375,159.18,159.16,34.34]
[1752167483019,10.65092375,159.17,159.16,34.34]
[1752167483590,12.22722375,159.17,159.16,34.4]
[1752167483794,12.22722375,159.17,159.16,34.38]
[1752167484028,12.22722375,159.17,159.1,0.62853551]
[1752167484315,9.96092375,159.11,159.1,1.29853551]
[1752167484613,2.2663,159.17,159.11,0.14216157]
[1752167484794,9.96092375,159.12,159.11,26.42648471]
[1752167485114,9.96092375,159.12,159.11,60.78648471]
[1752167485307,9.96092375,159.12,159.11,26.42648471]
[1752167485619,1.5763,159.17,159.12,0.28432314]
[1752167485793,9.96092375,159.13,159.12,1.09648471]
[1752167486419,7.56370991,159.2,159.13,0.14216157]
[1752167486614,17.52463366,159.2,159.14,34.98837752]
[1752167486792,0.69,159.19,159.14,34.36]
[1752167487113,0.69,159.19,159.15,0.67]
[1752167487611,0.69,159.19,159.15,1.29833804]
[1752167487814,9.96092375,159.16,159.15,1.58266118]
[1752167488012,16.83463366,159.2,159.15,1.58266118]
[1752167488013,6.87370991,159.2,159.18,0.28432314]
[1752167488217,6.87370991,159.2,159.19,35.63818016]
[1752167488520,6.87370991,159.2,159.19,36.06466487]
[1752167488694,6.87370991,159.2,159.19,52.84934884]
[1752167489311,0.1,159.22,159.2,17.62506868]
[1752167489524,2.457,159.29,159.22,16.78468397]
[1752167489696,12.41792375,159.29,159.25,0.42648471]
[1752167489891,2.457,159.29,159.26,35.81790405]
[1752167490098,2.457,159.29,159.26,35.14790405]
[1752167490427,2.457,159.29,159.26,0.62790405]
[1752167490428,9.96092375,159.27,159.26,0.62790405]
[1752167490637,10.65092375,159.27,159.24,0.62798291]
[1752167490802,2.3468,159.26,159.18,38.98654905]
[1752167491131,2.3468,159.26,159.19,0.67]
[1752167491320,9.96092375,159.2,159.19,0.67]
[1752167491511,9.96092375,159.2,159.19,35.25]
[1752167491828,9.96092375,159.2,159.19,0.67]
[1752167492004,9.96092375,159.23,159.2,16.92684554]
[1752167492445,9.1168,159.29,159.2,17.59684554]
[1752167492446,9.96092375,159.22,159.2,17.59684554]
[1752167492644,9.96092375,159.21,159.2,17.59684554]
[1752167493052,0.69,159.28,159.2,17.88116868]
[1752167493257,0.69,159.28,159.21,0.62810124]
[1752167493441,9.96092375,159.22,159.21,0.62810124]
[1752167493647,9.96092375,159.22,159.21,35.16810124]
[1752167493846,10.65092375,159.22,159.19,0.62818016]
[1752167494054,9.96092375,159.2,159.18,21.57364546]
[1752167494252,0.69,159.2,159.19,34.58]
[1752167494457,10.65092375,159.2,159.19,34.58]
[1752167494661,10.65092375,159.2,159.18,21.57364546]
[1752167494859,0.69,159.2,159.18,21.57364546]
[1752167495057,1.5306,159.22,159.19,34.6]
[1752167495273,19.9218475,159.2,159.17,27.12]
[1752167495462,9.96092375,159.18,159.17,27.12]
[1752167495674,10.65092375,159.18,159.17,27.12]
[1752167495875,10.65092375,159.18,159.17,34.62]
[1752167496482,0.69,159.18,159.06,1.29869357]
[1752167496671,9.96092375,159.09,159.07,64.62]
[1752167496870,0.69,159.15,159.08,1.29861453]
[1752167497267,0.69,159.15,159.08,18.0832985]
[1752167497464,36.74609962,159.2,159.08,18.0832985]
[1752167497465,0.67,159.18,159.09,17.44468397]
[1752167497683,9.96092375,159.13,159.11,16.78468397]
[1752167497869,9.96092375,159.2,159.1,61.36]
[1752167498070,9.96092375,159.11,159.1,61.36]
[1752167498766,0.67,159.16,159.1,61.36]
[1752167498970,9.96092375,159.13,159.1,61.36]
[1752167499173,10.63092375,159.2,159.11,17.87116868]
[1752167499491,9.96092375,159.12,159.07,6.2077]
[1752167499696,9.96092375,159.08,159.05,0.03]
[1752167499992,9.96092375,159.1,159.06,35.54]
[1752167500363,10.63092375,159.1,159.06,35.54]
[1752167500583,0.67,159.09,159.06,35.54]
[1752167500888,0.67,159.09,159.05,0.03]
[1752167501096,0.67,159.08,159.06,35.52]
[1752167501468,10.63092375,159.1,159.06,35.52]
[1752167501677,9.96092375,159.07,159.06,35.52]
[1752167502197,10.63092375,159.1,159.06,35.52]
[1752167502379,9.96092375,159.07,159.06,35.52]
[1752167502969,0.67,159.09,159.06,35.52]
[1752167503172,9.96092375,159.07,159.06,35.52]
[1752167503788,6.3694,159.11,159.06,35.52]
[1752167503976,9.96092375,159.07,159.06,52.96468397]
[1752167504191,0.67,159.12,159.07,16.78468397]
[1752167504381,0.67,159.12,159.08,0.62861453]
[1752167504581,0.67,159.12,159.09,35.5]
[1752167504778,1.5583,159.13,159.09,35.5]
[1752167504779,0.67,159.11,159.09,35.5]
[1752167504974,0.67,159.1,159.05,16.81468397]
[1752167505182,0.67,159.1,159.06,35.48]
[1752167505573,0.67,159.1,159.05,0.03]
[1752167505574,9.96092375,159.07,159.05,0.03]
[1752167505890,0.67,159.09,159.05,0.03]
[1752167505891,10.63092375,159.06,159.05,0.03]
[1752167506076,10.63092375,159.06,159.05,35.49]
[1752167506391,10.63092375,159.06,159.05,35.51]
[1752167506966,10.63092375,159.06,159.05,35.49]
[1752167507492,1.6194,159.05,158.93,50.0]
[1752167507807,9.96092375,159.0,158.97,30.03]
[1752167508100,0.67,158.99,158.98,36.74]
[1752167508284,10.63092375,158.99,158.97,30.03]
[1752167508495,9.96092375,159.0,158.98,36.74]
[1752167508676,10.63092375,159.0,158.98,36.74]
[1752167509366,0.67,158.99,158.98,36.74]
[1752167509868,10.63092375,158.99,158.98,36.74]
[1752167510083,10.63092375,158.99,158.97,0.03]
[1752167510393,10.63092375,158.98,158.93,50.0]
[1752167510599,9.96092375,158.94,158.93,50.0]
[1752167511797,10.63092375,158.94,158.93,86.68]
[1752167512183,9.96092375,158.94,158.93,86.68]
[1752167512363,10.63092375,158.94,158.93,86.68]
[1752167512990,10.63092375,158.94,158.88,0.66]
[1752167513191,9.96092375,158.89,158.85,16.98468397]
[1752167513363,0.67,158.94,158.88,26.0]
[1752167513568,9.96092375,158.89,158.88,42.78468397]
[1752167513779,17.61512375,159.0,158.93,16.78468397]
[1752167513982,0.67,158.99,158.93,16.78468397]
[1752167514169,9.96092375,158.94,158.93,16.78468397]
[1752167514383,9.96092375,158.94,158.93,53.48468397]
[1752167514580,9.96092375,158.94,158.93,36.7]
[1752167514787,9.96092375,158.94,158.93,37.3]
[1752167515098,10.63092375,158.94,158.93,37.3]
[1752167515304,10.63092375,158.94,158.93,0.03]
[1752167515473,0.67,158.97,158.93,36.69]
[1752167515677,9.96092375,158.94,158.93,53.47468397]
[1752167516288,0.67,158.99,158.94,16.78468397]
[1752167516493,17.61512375,159.0,158.94,16.78468397]
[1752167516795,17.61512375,159.0,158.95,36.64]
[1752167516796,0.67,158.99,158.95,36.64]
[1752167516973,9.96092375,158.96,158.95,36.64]
[1752167517379,0.67,158.99,158.95,36.64]
[1752167517602,9.96092375,158.96,158.95,54.08468397]
[1752167517789,9.96092375,159.0,158.96,16.78468397]
[1752167517975,9.96092375,158.97,158.96,16.78468397]
[1752167518174,0.67,159.0,158.96,16.78468397]
[1752167518405,9.96092375,158.97,158.96,16.78468397]
[1752167518899,9.96092375,158.97,158.96,17.44468397]
[1752167519199,9.96092375,158.97,158.96,16.78468397]
[1752167519692,9.96092375,158.97,158.95,37.26912865]
[1752167519902,9.96092375,159.0,158.96,17.38468397]
[1752167520195,0.67,159.02,158.96,18.04468397]
[1752167520402,1.6454,159.04,158.97,18.07373347]
[1752167520603,1.6454,159.04,158.99,16.78468397]
[1752167520777,0.67,159.03,159.0,36.52]
[1752167520977,9.96092375,159.01,159.0,36.52]
[1752167522198,20.5918475,159.01,159.0,36.48]
[1752167522383,9.96092375,159.01,159.0,36.48]
[1752167522893,20.5918475,159.01,159.0,36.48]
[1752167523097,20.5918475,159.01,158.99,36.46]
[1752167523289,20.5918475,159.0,158.99,36.46]
[1752167523480,0.67,159.02,158.99,36.46]
[1752167523801,9.96092375,159.0,158.99,36.46]
[1752167524496,2.3154,159.04,158.99,53.90468397]
[1752167524704,9.96092375,159.0,158.99,36.46]
[1752167525077,19.9218475,159.0,158.99,36.46]
[1752167525281,20.5918475,159.0,158.95,16.78468397]
[1752167525477,0.67,159.02,158.96,37.06]
[1752167525677,9.96092375,158.97,158.96,37.06]
[1752167525905,2.3154,159.04,158.97,16.78468397]
[1752167526103,2.3154,159.04,158.98,0.62900993]
[1752167526301,9.96092375,159.0,158.99,53.16468397]
[1752167526601,9.96092375,159.02,158.99,53.82468397]
[1752167526802,0.06,159.05,159.01,16.78468397]
[1752167526977,9.96092375,159.04,159.03,16.78468397]
[1752167527175,9.96092375,159.04,159.03,17.44468397]
[1752167527605,0.06,159.05,159.03,17.44468397]
[1752167527899,9.96092375,159.04,159.03,16.78468397]
[1752167528414,9.96092375,159.04,159.03,17.48468397]
[1752167529383,10.02092375,159.05,159.03,17.48468397]
[1752167529705,0.06,159.05,159.04,17.48468397]
[1752167530000,0.06,159.05,159.04,18.53994131]
[1752167530799,0.06,159.05,159.04,44.53994131]
[1752167531777,0.06,159.05,159.04,107.53994131]
[1752167532003,0.06,159.05,159.04,143.75994131]
[1752167532190,9.96092375,159.11,159.09,0.14216157]
[1752167532390,2.1923,159.16,159.11,16.78468397]
[1752167532596,0.1,159.21,159.16,16.78468397]
[1752167532795,0.1,159.21,159.17,36.84825909]
[1752167533007,0.1,159.21,159.17,37.54825909]
[1752167533182,9.96092375,159.2,159.19,16.78468397]
[1752167533384,0.1,159.21,159.19,18.11286413]
[1752167533689,0.1,159.21,159.2,53.82684554]
[1752167533885,0.1,159.21,159.2,54.11116868]
[1752167534087,7.1989,159.33,159.25,16.92684554]
[1752167534393,0.12837207,159.36,159.28,6.59738471]
[1752167534599,0.12837207,159.36,159.35,42.92684554]
[1752167534797,0.12837207,159.36,159.35,80.03871809]
[1752167536308,0.2053953,159.37,159.36,17.21116868]
[1752167536507,0.2053953,159.37,159.36,16.92684554]
[1752167536508,10.16631905,159.37,159.36,16.92684554]
[1752167536815,14.31328969,159.37,159.36,36.76751004]
[1752167537304,14.99328969,159.37,159.36,36.12]
[1752167537699,14.99328969,159.37,159.26,0.62790405]
[1752167537900,26.68,159.36,159.28,30.0]
[1752167538210,6.27588803,159.34,159.28,30.0]
[1752167538415,0.78453524,159.33,159.28,30.0]
[1752167538710,0.78453524,159.33,159.21,36.06]
[1752167538711,26.0,159.3,159.21,36.06]
[1752167538902,0.68,159.29,159.21,36.06]
[1752167539110,14.10789439,159.22,159.21,36.06]
[1752167540015,14.78789439,159.22,159.21,36.06]
[1752167540421,14.10789439,159.22,159.16,27.1]
[1752167540713,0.68,159.24,159.18,16.78468397]
[1752167540914,14.10789439,159.19,159.17,36.04]
[1752167541115,14.10789439,159.18,159.17,52.82468397]
[1752167541816,14.10789439,159.18,159.16,27.1]
[1752167542124,0.68,159.22,159.17,36.02]
[1752167542694,0.68,159.21,159.17,36.02]
[1752167543094,0.68,159.2,159.17,35.98]
[1752167543319,28.21578878,159.18,159.17,35.98]
[1752167543612,28.21578878,159.18,159.13,16.78468397]
[1752167543613,14.78789439,159.18,159.16,35.96]
[1752167543814,14.10789439,159.17,159.16,35.96]
[1752167544118,14.10789439,159.17,159.16,52.74468397]
[1752167545999,0.68,159.21,159.16,52.74468397]
[1752167546512,14.10789439,159.17,159.16,52.74468397]
[1752167546818,14.10789439,159.17,159.14,16.78468397]
[1752167547035,0.68,159.22,159.16,16.78468397]
[1752167547200,14.10789439,159.18,159.16,17.41298253]
[1752167547510,2.1903,159.25,159.18,16.78468397]
[1752167547716,14.10789439,159.22,159.2,16.78468397]
[1752167547912,14.10789439,159.22,159.21,0.62810124]
[1752167549003,0.68,159.27,159.21,0.62810124]
[1752167549004,0.68,159.27,159.22,16.78468397]
[1752167549227,0.68,159.3,159.24,16.78468397]
[1752167549410,0.68,159.3,159.25,0.62794348]
[1752167549724,0.68,159.3,159.26,35.84]
[1752167550216,0.68,159.29,159.26,35.84]
[1752167550796,14.10789439,159.27,159.26,35.84]
[1752167551209,14.78789439,159.27,159.26,35.84]
[1752167552124,14.78789439,159.27,159.23,0.62802235]
[1752167552422,14.10789439,159.24,159.2,36.26]
[1752167552603,0.68,159.23,159.21,36.26]
[1752167552920,14.10789439,159.22,159.21,36.26]
[1752167553311,14.78789439,159.22,159.16,0.62829856]
[1752167553620,14.10789439,159.17,159.13,26.0]
[1752167553935,7.06359767,159.27,159.12,0.62845651]
[1752167553936,0.68,159.2,159.12,0.62845651]
[1752167554106,0.68,159.2,159.14,16.78468397]
[1752167554797,0.68,159.2,159.15,36.32]
[1752167555007,14.10789439,159.16,159.15,53.10468397]
[1752167555211,7.0006,159.23,159.16,17.28468397]
[1752167555400,14.10789439,159.17,159.16,17.28468397]
[1752167556096,14.10789439,159.17,159.16,17.98468397]
[1752167556513,0.68,159.25,159.17,0.14216157]
[1752167556848,0.68,159.25,159.19,16.78468397]
[1752167557756,20.42849439,159.28,159.19,16.78468397]
[1752167558036,0.72,159.28,159.21,42.78468397]
[1752167558241,14.10789439,159.24,159.23,16.78468397]
[1752167558553,14.10789439,159.24,159.23,17.49468397]
[1752167558719,14.10789439,159.25,159.23,17.49468397]
[1752167559031,0.72,159.3,159.23,17.49468397]
[1752167559032,14.10789439,159.24,159.23,16.78468397]
[1752167559613,14.10789439,159.24,159.22,36.22]
[1752167559841,14.10789439,159.23,159.22,36.22]
[1752167560010,14.82789439,159.23,159.22,36.14]
[1752167560529,14.10789439,159.23,159.22,36.14]
[1752167561442,14.82789439,159.28,159.22,36.14]
[1752167561627,14.10789439,159.23,159.22,36.14]
[1752167561825,14.10789439,159.23,159.22,52.92468397]
[1752167562840,14.10789439,159.23,159.22,36.06]
[1752167563538,0.72,159.25,159.22,36.06]
[1752167563720,14.10789439,159.23,159.19,0.03]
[1752167564040,14.10789439,159.2,159.19,0.03]
[1752167564218,0.72,159.24,159.19,36.09]
[1752167564419,14.9526759,159.28,159.19,36.09]
[1752167564731,0.72,159.27,159.2,16.78468397]
[1752167565938,14.10789439,159.21,159.2,16.78468397]
[1752167566417,0.72,159.27,159.2,18.12282467]